fUST/lending_fUST_20250718
["ID","MTS","AMOUNT","RATE_DAILY","PERIOD"]
[372995605,1752838242273,-151.0,0.00024604,7]
[372995607,1752838242282,-2595.11453564,0.00024606,2]
[372995609,1752838242292,-2170.6,0.00024636,6]
[372995611,1752838242301,-150.92781,0.00024648,2]
[372995613,1752838242310,-4679.28770361,0.0002465,2]
[372995615,1752838242327,-1034.00961032,0.0002465,2]
[372995638,1752838242537,-414.18787102,0.00018441,2]
[372995640,1752838242546,-478.79,0.00020293,2]
[372995642,1752838242555,-478.79,0.00020567,2]
[372995644,1752838242565,-478.79,0.00020841,2]
[372995646,1752838242575,-478.79,0.00021115,2]
[372995648,1752838242584,-478.79,0.00021389,2]
[372995650,1752838242594,-478.79,0.00021663,2]
[372995652,1752838242610,-478.79,0.00021937,2]
[372995654,1752838242620,-478.79,0.00022211,2]
[372995656,1752838242629,-478.79,0.00022485,2]
[372995658,1752838242639,-13426.64080843,0.0002465,2]
[372995782,1752838243818,-460.0,0.00017994,2]
[372995784,1752838243828,-478.79,0.00022759,2]
[372995786,1752838243837,-478.79,0.00023033,2]
[372995788,1752838243847,-21.06857751,0.0002465,2]
[372995791,1752838243861,-8893.94123524,0.0002465,2]
[372995793,1752838243873,-264.73950751,0.0002465,2]
[373004916,1752838407024,460.0,0.00016995,2]
[373004919,1752838621812,453.608249,0.00016698,2]
[373004920,1752838700007,529.72157974,0.00016906,2]
[373004924,1752838878822,3006.29065626,0.00017,2]
[373004925,1752839041505,7208.7554428,0.00016004,2]
[373004928,1752839153107,-996.85323581,0.00017,2]
[373004929,1752839155806,12033.981362,0.00016003,2]
[373004930,1752839247092,-504.1909118,0.00016904,2]
[373004931,1752839247115,-496.85610793,0.00017,2]
[373004932,1752839247139,-120.57015167,0.00017,3]
[373004934,1752839345095,-287.79564734,0.00017,3]
[373004935,1752839345117,-297.0,0.00017001,2]
[373004936,1752839345139,-300.0,0.00017001,2]
[373004937,1752839345160,-1064.02923467,0.00017002,2]
[373004938,1752839371087,-554.85980562,0.00017002,2]
[373004966,1752839432817,-646.8644448,0.00016492,2]
[373005022,1752839439450,-31.03556528,0.00016492,2]
[373005023,1752839439460,-338.95000504,0.00016493,2]
[373005024,1752839439470,-441.16704786,0.00016902,2]
[373005025,1752839439479,-151.62208782,0.00016994,2]
[373005026,1752839439490,-300.0,0.00017001,2]
[373005027,1752839439499,-300.0,0.00017001,2]
[373005028,1752839439509,-300.0,0.00017001,2]
[373005029,1752839439519,-1200.0,0.00017001,2]
[373005030,1752839439528,-300.0,0.00017001,2]
[373005031,1752839439537,-300.0,0.00017001,2]
[373005032,1752839439547,-48381.11095971,0.00017002,2]
[373005033,1752839439557,-465.24238562,0.00017002,2]
[373005034,1752839439567,-461.36121809,0.00017002,2]
[373005035,1752839439576,-460.0,0.00017002,2]
[373005036,1752839439586,-462.36153275,0.00017002,2]
[373005037,1752839439595,-500.0,0.00017002,2]
[373005038,1752839439605,-460.0,0.00017002,2]
[373005039,1752839439614,-460.0,0.00017002,2]
[373005040,1752839439624,-460.0,0.00017002,2]
[373005041,1752839439634,-460.0,0.00017002,2]
[373005042,1752839439644,-460.0,0.00017002,2]
[373005043,1752839439653,-460.0,0.00017002,2]
[373005044,1752839439663,-460.0,0.00017002,2]
[373005045,1752839439672,-460.0,0.00017002,2]
[373005046,1752839439682,-305.2760088,0.00017003,2]
[373005047,1752839439691,-976.96646098,0.00017003,2]
[373005048,1752839439701,-460.0,0.00017003,2]
[373005049,1752839439711,-460.0,0.00017003,2]
[373005050,1752839439720,-460.0,0.00017003,2]
[373005051,1752839439730,-460.0,0.00017003,2]
[373005052,1752839439740,-460.0,0.00017003,2]
[373005053,1752839439749,-460.0,0.00017003,2]
[373005054,1752839439759,-460.0,0.00017003,2]
[373005055,1752839439768,-460.0,0.00017003,2]
[373005056,1752839439778,-460.0,0.00017003,2]
[373005057,1752839439787,-460.0,0.00017003,2]
[373005058,1752839439797,-281.90717481,0.00017003,2]
[373005059,1752839439806,-245.95488335,0.00017003,2]
[373005060,1752839439816,-460.0,0.00017003,2]
[373005061,1752839439825,-565.96,0.00017003,2]
[373005062,1752839439835,-460.0,0.00017003,2]
[373005063,1752839439844,-460.0,0.00017003,2]
[373005064,1752839439854,-282.89331643,0.00017003,2]
[373005065,1752839439863,-240.0,0.00017003,2]
[373005066,1752839439874,-460.0,0.00017003,2]
[373005067,1752839439883,-290.46240012,0.00017003,2]
[373005068,1752839439897,-460.0,0.00017003,2]
[373005069,1752839439906,-460.0,0.00017003,2]
[373005070,1752839439916,-460.0,0.00017003,2]
[373005071,1752839439926,-500.0,0.00017003,2]
[373005072,1752839439935,-500.0,0.00017003,2]
[373005073,1752839439944,-500.0,0.00017003,2]
[373005074,1752839439954,-500.0,0.00017003,2]
[373005075,1752839439963,-500.0,0.00017003,2]
[373005076,1752839439974,-500.0,0.00017003,2]
[373005077,1752839439984,-223.86467968,0.00017003,2]
[373005078,1752839439993,-500.0,0.00017003,2]
[373005079,1752839440003,-331.22597849,0.00017003,2]
[373005080,1752839440013,-500.0,0.00017003,2]
[373005081,1752839440022,-228.96777869,0.00017003,2]
[373005082,1752839440032,-500.0,0.00017003,2]
[373005083,1752839440041,-512.35111975,0.00017003,2]
[373005084,1752839440050,-500.0,0.00017003,2]
[373005085,1752839440060,-500.0,0.00017003,2]
[373005086,1752839440070,-445.98479057,0.00017003,2]
[373005087,1752839440080,-509.09330529,0.00017003,2]
[373005088,1752839440089,-500.0,0.00017003,2]
[373005089,1752839440098,-500.0,0.00017003,2]
[373005090,1752839440108,-500.0,0.00017003,2]
[373005091,1752839440118,-277.47384311,0.00017003,2]
[373005092,1752839440128,-460.0,0.00017003,2]
[373005093,1752839440138,-460.0,0.00017004,2]
[373005094,1752839440148,-460.0,0.00017004,2]
[373005095,1752839440158,-460.0,0.00017004,2]
[373005096,1752839440167,-460.0,0.00017004,2]
[373005097,1752839440177,-460.0,0.00017004,2]
[373005098,1752839440187,-373.50511539,0.00017004,2]
[373005099,1752839440196,-460.0,0.00017004,2]
[373005100,1752839440206,-460.0,0.00017004,2]
[373005101,1752839440216,-460.0,0.00017004,2]
[373005102,1752839440225,-460.0,0.00017004,2]
[373005103,1752839440234,-500.0,0.00017004,2]
[373005104,1752839440244,-460.0,0.00017004,2]
[373005105,1752839440253,-460.0,0.00017004,2]
[373005106,1752839440264,-428.01824685,0.00017004,2]
[373005107,1752839440275,-460.0,0.00017004,2]
[373005108,1752839440284,-502.36379761,0.00017004,2]
[373005109,1752839440294,-460.0,0.00017004,2]
[373005110,1752839440304,-460.0,0.00017004,2]
[373005111,1752839440314,-460.0,0.00017004,2]
[373005112,1752839440323,-460.0,0.00017004,2]
[373005113,1752839440333,-460.0,0.00017004,2]
[373005114,1752839440343,-460.0,0.00017004,2]
[373005115,1752839440353,-460.0,0.00017004,2]
[373005116,1752839440364,-460.0,0.00017004,2]
[373005117,1752839440382,-460.0,0.00017004,2]
[373005118,1752839440394,-460.0,0.00017004,2]
[373005119,1752839440404,-460.0,0.00017004,2]
[373005120,1752839440414,-460.0,0.00017004,2]
[373005121,1752839440425,-466.51028585,0.00017004,2]
[373005122,1752839440435,-460.0,0.00017004,2]
[373005123,1752839440445,-460.0,0.00017004,2]
[373005124,1752839440455,-460.0,0.00017004,2]
[373005125,1752839440465,-460.0,0.00017004,2]
[373005126,1752839440475,-460.0,0.00017004,2]
[373005127,1752839440485,-151.33233934,0.00017004,2]
[373005128,1752839440495,-251.41226243,0.00017004,2]
[373005129,1752839440505,-460.0,0.00017004,2]
[373005130,1752839440514,-460.0,0.00017004,2]
[373005131,1752839440524,-460.0,0.00017004,2]
[373005132,1752839440534,-460.0,0.00017004,2]
[373005133,1752839440544,-460.0,0.00017004,2]
[373005134,1752839440554,-460.0,0.00017004,2]
[373005135,1752839440564,-289.79576107,0.00017004,2]
[373005136,1752839440574,-460.0,0.00017004,2]
[373005137,1752839440583,-460.0,0.00017004,2]
[373005138,1752839440594,-460.0,0.00017004,2]
[373005139,1752839440603,-460.0,0.00017004,2]
[373005140,1752839440613,-460.0,0.00017004,2]
[373005141,1752839440624,-460.0,0.00017004,2]
[373005142,1752839440634,-460.0,0.00017004,2]
[373005143,1752839440644,-460.68913756,0.00017004,2]
[373005144,1752839440654,-460.0,0.00017004,2]
[373005145,1752839440664,-460.0,0.00017004,2]
[373005146,1752839440674,-460.0,0.00017004,2]
[373005147,1752839440684,-460.0,0.00017004,2]
[373005148,1752839440693,-460.0,0.00017004,2]
[373005149,1752839440703,-461.20694006,0.00017004,2]
[373005150,1752839440713,-460.0,0.00017004,2]
[373005151,1752839440723,-220.8,0.00017004,2]
[373005152,1752839440733,-460.0,0.00017004,2]
[373005153,1752839440742,-460.0,0.00017005,2]
[373005154,1752839440752,-254.81368763,0.00017005,2]
[373005155,1752839440762,-480.44803317,0.00017005,2]
[373005156,1752839440771,-682.28,0.00017005,2]
[373005157,1752839440781,-460.0,0.00017005,2]
[373005158,1752839440790,-460.0,0.00017005,2]
[373005159,1752839440800,-511.89,0.00017005,2]
[373005161,1752839440810,-460.0,0.00017005,2]
[373005163,1752839440820,-460.0,0.00017005,2]
[373005164,1752839440830,-460.0,0.00017005,2]
[373005165,1752839440840,-460.0,0.00017006,2]
[373005166,1752839440850,-271.38510199,0.00017006,2]
[373005168,1752839440859,-460.0,0.00017006,2]
[373005170,1752839440869,-460.0,0.00017006,2]
[373005172,1752839440878,-460.0,0.00017006,2]
[373005174,1752839440888,-460.0,0.00017006,2]
[373005175,1752839440902,-460.0,0.00017276,2]
[373005176,1752839440912,-460.0,0.00017276,2]
[373005177,1752839440922,-460.0,0.00017276,2]
[373005178,1752839440932,-460.0,0.00017276,2]
[373005179,1752839440942,-460.0,0.00017277,2]
[373005180,1752839440952,-460.0,0.00017277,2]
[373005181,1752839440962,-460.0,0.00017277,2]
[373005182,1752839440974,-460.0,0.00017277,2]
[373005183,1752839440983,-460.0,0.00017277,2]
[373005184,1752839440992,-414.04,0.00017277,2]
[373005185,1752839441002,-460.0,0.00017277,2]
[373005186,1752839441011,-358.93871798,0.00017278,2]
[373005187,1752839441021,-548.79775648,0.00017278,2]
[373005188,1752839441031,-357.40843301,0.00017278,2]
[373005189,1752839441041,-460.0,0.00017278,2]
[373005190,1752839441051,-460.0,0.00017278,2]
[373005191,1752839441061,-460.0,0.00017278,2]
[373005192,1752839441071,-168.01319609,0.00017278,2]
[373005193,1752839441080,-460.0,0.00017278,2]
[373005194,1752839441090,-460.0,0.00017278,2]
[373005195,1752839441099,-460.0,0.00017278,2]
[373005196,1752839441109,-460.0,0.00017278,2]
[373005197,1752839441118,-460.0,0.00017278,2]
[373005198,1752839441134,-263.71536864,0.00017278,2]
[373005199,1752839441144,-682.28,0.00017279,2]
[373005200,1752839441154,-460.0,0.00017279,2]
[373005201,1752839441164,-460.0,0.00017279,2]
[373005202,1752839441174,-460.0,0.00017279,2]
[373005203,1752839441184,-460.0,0.00017279,2]
[373005204,1752839441194,-460.0,0.0001755,2]
[373005205,1752839441205,-460.0,0.0001755,2]
[373005206,1752839441216,-460.0,0.0001755,2]
[373005207,1752839441227,-460.0,0.00017551,2]
[373005208,1752839441237,-460.0,0.00017551,2]
[373005209,1752839441247,-460.0,0.00017551,2]
[373005210,1752839441257,-460.0,0.00017551,2]
[373005211,1752839441267,-460.0,0.00017552,2]
[373005212,1752839441277,-460.0,0.00017552,2]
[373005213,1752839441286,-460.0,0.00017552,2]
[373005214,1752839441296,-460.0,0.00017552,2]
[373005215,1752839441306,-460.0,0.00017552,2]
[373005216,1752839441316,-460.0,0.00017552,2]
[373005217,1752839441327,-500.0,0.00017553,2]
[373005218,1752839441337,-682.28,0.00017553,2]
[373005219,1752839441347,-460.0,0.00017553,2]
[373005220,1752839441357,-460.0,0.00017553,2]
[373005221,1752839441368,-460.0,0.00017553,2]
[373005222,1752839441379,-460.0,0.00017553,2]
[373005223,1752839441389,-460.0,0.00017824,2]
[373005224,1752839441399,-255.68661818,0.00017824,2]
[373005225,1752839441408,-460.0,0.00017825,2]
[373005226,1752839441418,-460.0,0.00017825,2]
[373005227,1752839441428,-460.0,0.00017825,2]
[373005228,1752839441438,-460.0,0.00017826,2]
[373005229,1752839441448,-460.0,0.00017826,2]
[373005230,1752839441458,-460.0,0.00017826,2]
[373005231,1752839441468,-460.0,0.00017826,2]
[373005232,1752839441478,-460.0,0.00017826,2]
[373005233,1752839441488,-460.0,0.00017826,2]
[373005234,1752839441498,-682.28,0.00017827,2]
[373005235,1752839441507,-447.09,0.00017827,2]
[373005236,1752839441517,-460.0,0.00017827,2]
[373005237,1752839441527,-460.0,0.00017827,2]
[373005238,1752839441539,-460.0,0.00017827,2]
[373005239,1752839441550,-460.0,0.00018098,2]
[373005240,1752839441560,-460.0,0.00018099,2]
[373005241,1752839441571,-460.0,0.00018099,2]
[373005242,1752839441582,-460.0,0.000181,2]
[373005243,1752839441594,-460.0,0.000181,2]
[373005244,1752839441604,-460.0,0.000181,2]
[373005245,1752839441614,-460.0,0.000181,2]
[373005246,1752839441625,-460.0,0.000181,2]
[373005247,1752839441634,-460.0,0.000181,2]
[373005248,1752839441644,-682.28,0.00018101,2]
[373005249,1752839441654,-461.39734403,0.00018101,2]
[373005250,1752839441663,-460.0,0.00018101,2]
[373005251,1752839441673,-460.0,0.00018101,2]
[373005252,1752839441682,-441.16704782,0.00018112,2]
[373005253,1752839441692,-500.0,0.00018186,2]
[373005254,1752839441701,-455.01697286,0.00018268,2]
[373005255,1752839441711,-500.0,0.00018278,2]
[373005256,1752839441720,-460.0,0.00018279,2]
[373005257,1752839441730,-459.7555823,0.00018279,2]
[373005258,1752839441742,-460.0,0.00018279,2]
[373005259,1752839441753,-209.57503977,0.00018279,2]
[373005260,1752839441763,-460.0,0.00018279,2]
[373005261,1752839441980,-460.0,0.00018279,2]
[373005262,1752839441990,-774.9,0.00018353,3]
[373005263,1752839442000,-387.46,0.00018362,3]
[373005264,1752839442010,-578.82,0.00018363,3]
[373005265,1752839442020,-192.93,0.00018364,3]
[373005266,1752839442029,-460.0,0.00018372,2]
[373005267,1752839442039,-238.89334986,0.00018373,2]
[373005268,1752839442049,-460.0,0.00018373,2]
[373005269,1752839442058,-461.12344038,0.00018374,2]
[373005270,1752839442068,-373.12871714,0.00018374,2]
[373005271,1752839442077,-460.0,0.00018374,2]
[373005272,1752839442086,-460.0,0.00018374,2]
[373005273,1752839442096,-460.0,0.00018374,2]
[373005274,1752839442108,-460.0,0.00018374,2]
[373005275,1752839442117,-460.0,0.00018374,2]
[373005276,1752839442128,-460.0,0.00018374,2]
[373005277,1752839442138,-460.0,0.00018374,2]
[373005278,1752839442147,-460.0,0.00018374,2]
[373005279,1752839442157,-1587.96,0.00018374,2]
[373005280,1752839442166,-460.0,0.00018374,2]
[373005281,1752839442175,-460.0,0.00018374,2]
[373005282,1752839442184,-682.28,0.00018375,2]
[373005283,1752839442195,-460.0,0.00018375,2]
[373005284,1752839442204,-460.0,0.00018375,2]
[373005285,1752839442214,-310.4,0.00018531,3]
[373005286,1752839442224,-500.0,0.0001854,2]
[373005287,1752839442233,-462.39463851,0.00018541,2]
[373005288,1752839442243,-460.0,0.00018541,2]
[373005289,1752839442253,-420.0,0.00018569,2]
[373005290,1752839442264,-420.0,0.00018569,2]
[373005291,1752839442275,-420.0,0.00018569,2]
[373005292,1752839442284,-420.0,0.00018569,2]
[373005293,1752839442294,-420.0,0.00018569,2]
[373005294,1752839442304,-620.81,0.00018638,3]
[373005295,1752839442314,-460.0,0.00018646,2]
[373005296,1752839442323,-460.0,0.00018647,2]
[373005297,1752839442333,-460.0,0.00018648,2]
[373005298,1752839442343,-460.0,0.00018648,2]
[373005299,1752839442352,-460.0,0.00018648,2]
[373005300,1752839442362,-460.0,0.00018648,2]
[373005301,1752839442374,-1587.96,0.00018648,2]
[373005302,1752839442385,-460.0,0.00018648,2]
[373005303,1752839442396,-460.0,0.00018648,2]
[373005304,1752839442407,-682.28,0.00018649,2]
[373005305,1752839442416,-460.0,0.00018649,2]
[373005306,1752839442427,-460.0,0.00018649,2]
[373005307,1752839442436,-1487.0,0.00018661,2]
[373005308,1752839442577,-1100.20592339,0.00018734,2]
[373005309,1752839442601,-169.0,0.00018822,3]
[373005310,1752839442611,-852.60960118,0.000189,2]
[373005311,1752839442623,-302.8183302,0.000189,2]
[373005312,1752839442633,-712.76016804,0.000189,2]
[373005313,1752839442643,-460.0,0.0001892,2]
[373005314,1752839442652,-460.0,0.00018921,2]
[373005315,1752839442661,-460.0,0.00018922,2]
[373005316,1752839442671,-460.0,0.00018922,2]
[373005317,1752839442681,-323.32,0.00018922,2]
[373005318,1752839442690,-460.0,0.00018922,2]
[373005319,1752839442700,-1587.96,0.00018922,2]
[373005320,1752839442710,-460.0,0.00018922,2]
[373005321,1752839442719,-460.0,0.00018922,2]
[373005322,1752839442729,-682.28,0.00018923,2]
[373005323,1752839442738,-460.0,0.00018923,2]
[373005324,1752839442748,-460.0,0.00018923,2]
[373005325,1752839442757,-302.8183302,0.00019089,2]
[373005326,1752839442767,-500.0,0.000191,2]
[373005327,1752839442776,-712.76016777,0.00019141,2]
[373005328,1752839442786,-179.327198,0.00019178,2]
[373005329,1752839442795,-460.0,0.00019194,2]
[373005330,1752839442805,-460.0,0.00019195,2]
[373005331,1752839442814,-460.0,0.00019196,2]
[373005332,1752839442824,-460.0,0.00019196,2]
[373005333,1752839442833,-460.0,0.00019196,2]
[373005334,1752839442843,-1587.96,0.00019196,2]
[373005335,1752839442852,-460.0,0.00019196,2]
[373005336,1752839442861,-460.0,0.00019196,2]
[373005337,1752839442871,-682.28,0.00019197,2]
[373005338,1752839442881,-460.0,0.00019197,2]
[373005339,1752839442891,-460.0,0.00019197,2]
[373005340,1752839442904,-302.8183302,0.00019278,2]
[373005341,1752839442913,-441.16704782,0.00019323,2]
[373005342,1752839442922,-712.76016777,0.00019383,2]
[373005343,1752839442932,-302.81833018,0.00019467,2]
[373005344,1752839442942,-460.0,0.00019468,2]
[373005345,1752839442951,-460.0,0.00019469,2]
[373005346,1752839442961,-460.0,0.0001947,2]
[373005347,1752839442971,-460.0,0.0001947,2]
[373005348,1752839442980,-546.74,0.0001947,2]
[373005349,1752839442990,-1587.96,0.0001947,2]
[373005350,1752839442999,-460.0,0.0001947,2]
[373005351,1752839443008,-598.99,0.0001947,2]
[373005352,1752839443018,-682.28,0.00019471,2]
[373005353,1752839443028,-460.0,0.00019471,2]
[373005354,1752839443037,-460.0,0.00019471,2]
[373005355,1752839443046,-160.0,0.00019582,2]
[373005356,1752839443056,-712.76016777,0.00019624,2]
[373005357,1752839443067,-385.86,0.00019734,3]
[373005358,1752839443077,-460.0,0.00019742,2]
[373005359,1752839443086,-593.06,0.00019743,2]
[373005360,1752839443095,-460.0,0.00019744,2]
[373005361,1752839443104,-460.0,0.00019744,2]
[373005362,1752839443114,-1587.96,0.00019744,2]
[373005363,1752839443124,-460.0,0.00019744,2]
[373005364,1752839443133,-682.28,0.00019745,2]
[373005365,1752839443142,-460.0,0.00019745,2]
[373005366,1752839443152,-712.76016777,0.00019866,2]
[373005367,1752839443161,-620.8,0.00019901,3]
[373005368,1752839443170,-500.0,0.00019999,2]
[373005369,1752839443180,-251.49617328,0.0002,2]
[373005370,1752839443190,-1241.62,0.00020008,3]
[373005371,1752839443199,-500.0,0.00020009,2]
[373005372,1752839443209,-582.38720915,0.00020016,2]
[373005373,1752839443219,-460.0,0.00020018,2]
[373005374,1752839443228,-460.0,0.00020018,2]
[373005375,1752839443237,-1587.96,0.00020018,2]
[373005376,1752839443247,-460.0,0.00020018,2]
[373005377,1752839443256,-682.28,0.00020019,2]
[373005378,1752839443266,-460.0,0.00020019,2]
[373005379,1752839443276,-6173.88104702,0.00020076,2]
[373005380,1752839443285,-712.76016777,0.00020107,2]
[373005381,1752839443295,-260.0,0.0002013,2]
[373005382,1752839443304,-480.0,0.00020281,2]
[373005383,1752839443314,-300.0,0.00020281,2]
[373005384,1752839443324,-209.0,0.00020281,2]
[373005386,1752839443334,-545.0,0.00020281,2]
[373005387,1752839443344,-179.0,0.00020281,2]
[373005388,1752839443353,-460.0,0.00020292,2]
[373005390,1752839443363,-460.0,0.00020292,2]
[373005392,1752839443373,-1587.96,0.00020292,2]
[373005394,1752839443382,-460.0,0.00020292,2]
[373005396,1752839443391,-682.28,0.00020293,2]
[373005398,1752839443401,-460.0,0.00020293,2]
[373005400,1752839443410,-500.0,0.00020316,2]
[373005401,1752839443420,-712.76016777,0.00020348,3]
[373005402,1752839443430,-441.16704782,0.00020533,2]
[373005403,1752839443439,-6173.88104702,0.00020542,2]
[373005404,1752839443448,-160.0,0.00020555,2]
[373005405,1752839443458,-525.75194068,0.00020555,2]
[373005406,1752839443467,-160.0,0.00020555,2]
[373005407,1752839443477,-160.0,0.00020555,2]
[373005408,1752839443486,-160.0,0.00020555,2]
[373005409,1752839443496,-214.4881157,0.00020555,2]
[373005410,1752839443506,-230.89969799,0.00020555,2]
[373005411,1752839443515,-839.30593155,0.00020555,2]
[373005412,1752839443525,-160.0,0.00020555,2]
[373005413,1752839443534,-12610.43989422,0.00020555,2]
[373005414,1752839443544,-215.63268315,0.00020555,2]
[373005415,1752839443553,-160.0,0.00020555,2]
[373005416,1752839443563,-160.0,0.00020555,2]
[373005417,1752839443572,-476.25663856,0.00020555,2]
[373005418,1752839443581,-160.0,0.00020556,2]
[373005419,1752839443591,-460.0,0.00020566,2]
[373005420,1752839443601,-220.45519134,0.00020566,2]
[373005421,1752839443611,-1587.96,0.00020566,2]
[373005422,1752839443620,-460.0,0.00020566,2]
[373005423,1752839443632,-682.28,0.00020567,2]
[373005424,1752839443642,-460.0,0.00020567,2]
[373005425,1752839443651,-712.76016777,0.0002059,3]
[373005426,1752839443661,-360.0,0.00020678,2]
[373005427,1752839443671,-6173.88104702,0.00020694,2]
[373005428,1752839443681,-712.76016777,0.00020831,4]
[373005430,1752839443690,-460.0,0.0002084,2]
[373005432,1752839443700,-1587.96,0.0002084,2]
[373005434,1752839443710,-460.0,0.0002084,2]
[373005436,1752839443719,-682.28,0.00020841,2]
[373005437,1752839443730,-460.0,0.00020841,2]
[373005438,1752839443740,-342.64,0.00020884,2]
[373005439,1752839443750,-6173.88104702,0.00020945,2]
[373005440,1752839443761,-5000.0,0.00020979,2]
[373005441,1752839443771,-500.0,0.00021007,2]
[373005442,1752839443780,-712.76016777,0.00021072,4]
[373005443,1752839443790,-500.0,0.00021105,2]
[373005444,1752839443800,-1587.96,0.00021114,2]
[373005445,1752839443810,-460.0,0.00021114,2]
[373005446,1752839443819,-682.28,0.00021115,2]
[373005447,1752839443829,-460.0,0.00021115,2]
[373005448,1752839443839,-6173.88104702,0.00021136,2]
[373005450,1752839443849,-220.0,0.00021226,2]
[373005451,1752839443859,-712.76016777,0.00021314,5]
[373005452,1752839443869,-1587.96,0.00021388,2]
[373005453,1752839443882,-460.0,0.00021388,2]
[373005454,1752839443893,-682.28,0.00021389,2]
[373005455,1752839443906,-460.0,0.00021389,2]
[373005456,1752839443916,-6173.88104702,0.00021469,2]
[373005457,1752839443925,-712.76016777,0.00021555,5]
[373005458,1752839443937,-168.0,0.00021562,5]
[373005459,1752839443947,-6173.88104702,0.00021649,2]
[373005460,1752839443956,-1587.96,0.00021662,2]
[373005461,1752839443966,-460.0,0.00021662,2]
[373005462,1752839443977,-682.28,0.00021663,2]
[373005463,1752839443987,-460.0,0.00021663,2]
[373005464,1752839443997,-441.16704782,0.00021744,2]
[373005465,1752839444007,-712.76016777,0.00021797,6]
[373005466,1752839444017,-500.96833344,0.00021825,2]
[373005467,1752839444027,-500.0,0.00021917,2]
[373005468,1752839444037,-500.0,0.00021917,2]
[373005469,1752839444046,-500.0,0.00021917,2]
[373005470,1752839444056,-500.0,0.00021917,2]
[373005471,1752839444065,-1587.96,0.00021936,2]
[373005472,1752839444075,-460.0,0.00021936,2]
[373005473,1752839444084,-682.28,0.00021937,2]
[373005474,1752839444093,-460.0,0.00021937,2]
[373005475,1752839444103,-500.0,0.00021999,2]
[373005476,1752839444112,-500.0,0.00021999,2]
[373005477,1752839444125,-12958.51,0.00022,7]
[373005478,1752839444134,-171.0,0.00022,2]
[373005479,1752839444144,-4161.54,0.00022,7]
[373005480,1752839444154,-1654.27,0.00022,7]
[373005481,1752839444164,-172.0,0.00022,2]
[373005482,1752839444173,-214.4881157,0.00022,7]
[373005483,1752839444183,-476.25663856,0.00022,7]
[373005484,1752839444192,-160.0,0.00022,7]
[373005485,1752839444202,-712.76016777,0.00022038,6]
[373005486,1752839444211,-6173.88104702,0.00022077,2]
[373005487,1752839444221,-6173.88104702,0.00022199,2]
[373005488,1752839444230,-500.0,0.00022201,2]
[373005489,1752839444240,-1587.96,0.0002221,2]
[373005490,1752839444249,-460.0,0.0002221,2]
[373005491,1752839444258,-682.28,0.00022211,2]
[373005492,1752839444268,-460.0,0.00022211,2]
[373005493,1752839444277,-712.76016777,0.00022279,6]
[373005494,1752839444287,-864.95824441,0.00022384,2]
[373005495,1752839444296,-6173.88104702,0.00022482,2]
[373005496,1752839444306,-1587.96,0.00022484,2]
[373005497,1752839444315,-460.0,0.00022484,2]
[373005498,1752839444324,-682.28,0.00022485,2]
[373005499,1752839444334,-460.0,0.00022485,2]
[373005500,1752839444343,-712.76016777,0.00022521,7]